bitfinex-derivatives/quotes_ETHF0:USTF0_20210406
["timestamp","ask_amount","ask_price","bid_price","bid_amount"]
[1617684216939,63.8202,2112.8,2112.7,5.52]
[1617684219543,63.8202,2112.8,2112.6,3.34]
[1617684219943,63.8202,2112.8,2112.7,5.74]
[1617684220143,63.8202,2112.8,2112.6,5.76]
[1617684220443,63.8202,2112.8,2112.7,5.77]
[1617684220848,63.8202,2112.8,2112.6,5.78]
[1617684221145,2.90695,2112.7,2112.4,5.0035139]
[1617684221344,2.90695,2112.7,2112.5,0.06]
[1617684221546,2.90695,2112.7,2112.4,5.0035139]
[1617684221946,2.90695,2112.7,2112.5,5.79]
[1617684223846,2.90695,2112.7,2112.5,10.7966737]
[1617684224246,2.90695,2112.7,2112.5,5.0066737]
[1617684224746,2.90695,2112.7,2112.6,5.95]
[1617684225647,2.90695,2112.7,2112.5,3.01]
[1617684225847,2.90695,2112.7,2112.4,5.00427323]
[1617684226148,4.90695,2112.7,2112.6,5.95]
[1617684226549,4.90695,2112.7,2112.4,5.00427323]
[1617684226752,53.5312,2112.5,2112.3,5.00450563]
[1617684226948,53.5312,2112.5,2112.4,5.00446692]
[1617684227352,53.5312,2112.5,2112.4,8.44446692]
[1617684228951,54.4782,2112.5,2112.4,8.44446692]
[1617684229157,53.5312,2112.5,2112.4,8.44446692]
[1617684235765,53.5312,2112.5,2112.4,3.44]
[1617684236066,53.5312,2112.5,2112.4,5.00629575]
[1617684236467,53.5312,2112.5,2112.4,10.79629575]
[1617684240572,54.4849,2112.5,2112.4,10.79629575]
[1617684240772,53.5312,2112.5,2112.4,10.79629575]
[1617684243476,55.5312,2112.5,2112.4,5.79]
[1617684243676,56.4677,2112.5,2112.4,5.79]
[1617684243877,55.5312,2112.5,2112.3,5.00652369]
[1617684244277,55.5312,2112.5,2112.4,5.8]
[1617684246181,55.5312,2112.5,2112.3,7.88661118]
[1617684246581,55.5312,2112.5,2112.4,5.87]
[1617684247184,55.5312,2112.5,2112.3,2.307]
[1617684247582,55.5312,2112.5,2112.4,5.72]
[1617684247783,55.5312,2112.5,2112.2,5.76]
[1617684248083,55.5312,2112.5,2112.4,5.8]
[1617684248385,55.5312,2112.5,2112.2,5.81]
[1617684248584,55.5312,2112.5,2112.2,10.81260774]
[1617684248784,55.5312,2112.5,2112.4,5.92]
[1617684248984,55.5312,2112.5,2112.3,5.84]
[1617684249189,55.5312,2112.5,2112.3,5.1632]
[1617684249389,55.5312,2112.5,2112.2,5.83]
[1617684249589,2.90695,2112.3,2112.2,5.83]
[1617684249790,2.90695,2112.3,2112.1,5.00164624]
[1617684249989,2.90695,2112.3,2112.2,10.90159337]
[1617684250190,2.90695,2112.3,2112.2,10.75169337]
[1617684250392,2.90695,2112.3,2112.2,4.85169337]
[1617684250689,2.90695,2112.3,2112.2,10.75169337]
[1617684255296,3.84785,2112.3,2112.2,10.75169337]
[1617684255496,2.90695,2112.3,2112.2,10.75169337]
[1617684255896,4.89845,2112.3,2112.2,10.75169337]
[1617684256096,4.89845,2112.3,2112.2,5.9]
[1617684256498,4.89845,2112.3,2111.9,5.69]
[1617684256798,5.83455,2112.3,2112.2,5.68]
[1617684257097,4.89845,2112.3,2112.0,5.94]
[1617684257399,4.89845,2112.3,2112.2,5.81]
[1617684257799,4.89845,2112.3,2111.7,6.11347005]
[1617684257800,75.0918,2112.2,2112.1,5.7]
[1617684258098,75.0918,2112.2,2111.6,6.11354919]
[1617684258298,75.0918,2112.2,2111.8,5.94]
[1617684258499,75.0918,2112.2,2112.1,5.72]
[1617684258699,75.0918,2112.2,2111.7,6.11345914]
[1617684258898,75.0918,2112.2,2111.4,4.00695]
[1617684258899,75.0918,2112.2,2111.9,5.69]
[1617684259101,75.0918,2112.2,2111.8,3.48]
[1617684259400,75.0918,2112.2,2112.0,5.57]
[1617684259799,75.0918,2112.2,2111.9,3.22]
[1617684260006,75.0918,2112.2,2112.1,5.54]
[1617684260400,75.0918,2112.2,2112.0,3.3]
[1617684260601,75.0918,2112.2,2112.1,5.6]
[1617684261101,75.0918,2112.2,2112.0,5.84]
[1617684261302,75.0918,2112.2,2112.1,5.89]
[1617684261501,75.0918,2112.2,2111.8,4.99915697]
[1617684261807,2.90695,2111.9,2111.8,9.71915697]
[1617684262002,2.90695,2111.9,2111.8,4.99915697]
[1617684262403,2.90695,2111.9,2111.8,10.69915697]
[1617684262606,2.90695,2111.9,2111.8,5.7]
[1617684263004,2.90695,2111.9,2111.7,4.99914371]
[1617684263405,2.90695,2111.9,2111.5,11.86006454]
[1617684263406,2.90695,2111.9,2111.8,10.84915536]
[1617684263808,2.90695,2111.9,2111.8,4.99915536]
[1617684264008,2.90695,2111.9,2111.7,4.99913052]
[1617684264207,2.90695,2111.9,2111.8,5.87]
[1617684264407,2.90695,2111.9,2111.7,4.99913052]
[1617684264807,2.90695,2111.9,2111.8,5.85]
[1617684265209,76.91925,2111.9,2111.8,5.85]
[1617684267019,76.91925,2111.9,2111.8,10.8490906]
[1617684267413,76.91925,2111.9,2111.8,4.1178906]
[1617684267615,3.84685,2111.9,2111.8,4.1178906]
[1617684267818,2.90695,2111.9,2111.8,5.88]
[1617684268213,2.90695,2111.9,2111.5,5.95]
[1617684268413,79.1429,2111.6,2111.5,5.95]
[1617684268713,79.1429,2111.6,2111.5,0.22417433]
[1617684268916,79.1429,2111.6,2111.5,5.97417433]
[1617684269317,79.1429,2111.6,2111.5,12.0841617]
[1617684269918,82.04985,2111.6,2111.5,12.0841617]
[1617684270621,5.17665,2111.6,2111.5,12.0841617]
[1617684271319,2.90695,2111.6,2111.5,12.0841617]
[1617684273724,2.90695,2111.6,2111.5,5.97417433]
[1617684274722,2.90695,2111.6,2111.5,12.08319405]
[1617684277426,2.90695,2111.6,2111.5,5.97417433]
[1617684278429,2.90695,2111.6,2111.5,12.08322566]
[1617684279729,2.90695,2111.6,2111.5,5.97417433]
[1617684282534,3.86635,2111.6,2111.5,5.97417433]
[1617684282934,2.90695,2111.6,2111.5,5.97417433]
[1617684285941,64.06265,2111.6,2111.5,5.97417433]
[1617684287341,66.14015,2111.6,2111.5,12.08918552]
[1617684288448,64.06265,2111.6,2111.5,5.97417433]
[1617684292748,64.06265,2111.6,2111.5,13.21062369]
[1617684300866,2.90695,2111.6,2111.5,13.21062369]
[1617684301061,78.1164,2112.8,2111.5,13.21062369]
[1617684301661,0.9393,2113.2,2111.6,0.22454241]
[1617684301862,0.9393,2113.2,2112.3,7.83634353]
[1617684302063,0.9393,2113.2,2112.4,5.00972708]
[1617684302268,0.9393,2113.2,2112.4,10.83972708]
[1617684302498,0.9393,2113.2,2112.5,5.00960536]
[1617684302962,0.9393,2113.2,2112.6,5.92]
[1617684304098,30.0,2113.7,2112.6,5.92]
[1617684304326,2.90695,2112.7,2112.6,7.9552]
[1617684304527,2.90695,2112.7,2112.6,12.96693084]
[1617684304967,2.90695,2112.7,2112.6,14.08013437]
[1617684305188,77.576,2113.8,2112.6,14.08013437]
[1617684305468,77.576,2113.8,2112.6,7.9552]
[1617684305667,0.9566,2113.8,2112.9,5.01097918]
[1617684306071,0.9566,2113.8,2112.6,7.9552]
[1617684306072,0.9566,2113.8,2113.0,10.9209205]
[1617684306367,2.90695,2113.1,2113.0,10.9209205]
[1617684306669,2.90695,2113.1,2113.0,5.0109205]
[1617684306867,2.90695,2113.1,2113.0,7.4609205]
[1617684307067,2.90695,2113.1,2113.0,2.45]
[1617684307568,2.90695,2113.1,2112.9,5.71]
[1617684307768,2.90695,2113.1,2113.0,5.68]
[1617684307968,2.90695,2113.1,2112.9,5.00518877]
[1617684308168,2.90695,2113.1,2113.0,5.00513009]
[1617684308368,2.90695,2113.1,2113.0,10.84513009]
[1617684312075,2.90695,2113.1,2113.0,5.84]
[1617684312476,2.90695,2113.1,2112.9,5.92]
[1617684312878,2.90695,2113.1,2113.0,5.91]
[1617684313077,2.90695,2113.1,2112.9,5.89]
[1617684313478,2.90695,2113.1,2113.0,5.71]
[1617684313680,2.90695,2113.1,2112.8,0.53]
[1617684313980,2.90695,2113.1,2113.0,5.72]
[1617684314279,2.90695,2113.1,2112.8,5.85]
[1617684314482,72.1828,2113.0,2112.8,5.85]
[1617684314681,74.4551,2113.0,2112.7,0.1]
[1617684314881,74.4551,2113.0,2112.9,5.91]
[1617684315279,74.4551,2113.0,2112.7,5.77]
[1617684315480,74.4551,2113.0,2112.9,5.84]
[1617684315681,74.4551,2113.0,2112.7,5.74]
[1617684316381,2.90695,2112.8,2112.7,5.74]
[1617684316582,2.90695,2112.8,2112.7,10.74514702]
[1617684317084,2.90695,2112.8,2112.7,5.00514702]
[1617684317284,2.90695,2112.8,2112.7,10.75514702]
[1617684319588,2.90695,2112.8,2112.7,5.75]
[1617684320084,2.90695,2112.8,2112.6,6.11529509]
[1617684320386,2.90695,2112.8,2112.7,5.76]
[1617684323489,2.90695,2112.8,2112.7,10.763561]
[1617684323792,2.90695,2112.8,2112.7,5.76]
[1617684323990,2.90695,2112.8,2112.6,6.11540708]
[1617684324290,2.90695,2112.8,2112.7,5.72]
[1617684324490,2.90695,2112.8,2112.6,6.11540708]
[1617684324892,2.90695,2112.8,2112.7,5.7]
[1617684326406,2.90695,2112.8,2112.7,10.70256742]
[1617684326803,2.90695,2112.8,2112.7,5.00256742]
[1617684327004,2.90695,2112.8,2112.6,5.00253484]
[1617684327203,2.90695,2112.8,2112.7,5.72]
[1617684327411,2.90695,2112.8,2112.7,5.00258951]
[1617684327824,2.90695,2112.8,2112.7,10.89258951]
[1617684328015,2.90695,2112.8,2112.7,5.89]
[1617684328404,2.90695,2112.8,2112.6,5.00266515]
[1617684328811,2.90695,2112.8,2112.7,5.86]
[1617684329608,2.90695,2112.8,2112.7,10.86194837]
[1617684330110,2.90695,2112.8,2112.7,5.00194837]
[1617684330310,2.90695,2112.8,2112.7,10.92194837]
[1617684330613,2.90695,2112.8,2112.7,5.92]
[1617684331109,2.90695,2112.8,2112.6,5.002011]
[1617684331310,2.90695,2112.8,2112.7,5.68]
[1617684332611,2.90695,2112.8,2112.7,10.68180569]
[1617684333010,2.90695,2112.8,2112.7,5.00180569]
[1617684333310,2.90695,2112.8,2112.7,10.83180569]
[1617684333511,2.90695,2112.8,2112.7,5.83]
[1617684335014,2.90695,2112.8,2112.7,11.94287827]
[1617684337112,2.90695,2112.8,2112.7,10.83013507]
[1617684338430,4.64805,2112.8,2112.7,10.83013507]
[1617684338816,4.64805,2112.8,2112.7,5.83]
[1617684339213,4.64805,2112.8,2112.6,5.00030071]
[1617684339414,2.90695,2112.8,2112.7,4.99830955]
[1617684339616,2.90695,2112.8,2112.7,10.73830955]
[1617684339815,2.90695,2112.8,2112.7,4.99830955]
[1617684340120,2.90695,2112.8,2112.7,10.67830955]
[1617684340428,2.90695,2112.8,2112.7,5.68]
[1617684340916,61.7458,2112.7,2112.6,4.99741267]
[1617684341117,61.7458,2112.7,2112.5,4.99755685]
[1617684341321,61.7458,2112.7,2112.6,5.88]
[1617684341617,61.7458,2112.7,2112.5,10.92755685]
[1617684341818,61.7458,2112.7,2112.5,4.99755685]
[1617684342018,61.7458,2112.7,2112.6,5.8]
[1617684342620,61.7458,2112.7,2112.6,10.79738807]
[1617684343020,61.7458,2112.7,2112.6,4.99738807]
[1617684343320,61.7458,2112.7,2112.6,10.68738807]
[1617684351132,61.7458,2112.7,2112.6,5.69]
[1617684351332,2.90695,2112.8,2112.6,5.69]
[1617684351532,58.25245,2112.8,2112.5,11.98737043]
[1617684351845,58.25245,2112.8,2112.6,5.88]
[1617684352032,58.25245,2112.8,2112.7,4.99693225]
[1617684352635,58.25245,2112.8,2112.7,10.80693225]
[1617684353436,58.25245,2112.8,2112.7,5.81]
[1617684353834,58.25245,2112.8,2112.6,4.99689734]
[1617684354136,58.25245,2112.8,2112.7,5.81]
[1617684354636,58.25245,2112.8,2112.7,6.03454658]
[1617684355135,2.90695,2112.8,2112.7,6.03454658]
[1617684357638,2.90695,2112.8,2112.7,11.03147055]
[1617684358738,2.90695,2112.8,2112.7,6.03454658]
[1617684360740,2.90695,2112.8,2112.7,11.0332255]
[1617684361540,77.32685,2112.8,2112.7,11.0332255]
[1617684365347,79.30645,2112.8,2112.7,11.0332255]
[1617684368647,79.30645,2112.8,2112.7,6.03454658]
[1617684369349,79.30645,2112.8,2112.7,11.0330618]
[1617684369551,77.32685,2112.8,2112.7,11.0330618]
[1617684369750,77.32685,2112.8,2112.7,6.03454658]
[1617684372757,77.32685,2112.8,2112.7,11.03378307]
[1617684373057,77.32685,2112.8,2112.7,12.15095694]
[1617684374959,77.32685,2112.8,2112.7,6.03454658]
[1617684375660,77.32685,2112.8,2112.7,12.1509339]
[1617684376160,2.90695,2112.8,2112.7,12.1509339]
[1617684376761,5.41165,2112.8,2112.7,12.1509339]
[1617684378067,5.41165,2112.8,2112.7,6.03454658]
[1617684378268,5.41165,2112.8,2112.7,12.15091374]
[1617684379870,5.41165,2112.8,2112.7,5.81]
[1617684380470,73.4563,2112.7,2112.6,6.11666546]
[1617684380870,73.4563,2112.7,2112.6,12.03127549]
[1617684382272,73.4563,2112.7,2112.6,5.91461003]
[1617684385172,73.4563,2112.7,2112.6,13.16228018]
[1617684390382,73.4563,2112.7,2112.6,5.91461003]
[1617684390782,73.4563,2112.7,2112.6,13.16219608]
[1617684394494,73.4563,2112.7,2112.6,5.91461003]
[1617684394886,73.4563,2112.7,2112.6,13.16262422]
[1617684398287,73.4563,2112.7,2112.6,5.91461003]
[1617684398688,73.4563,2112.7,2112.6,13.16072883]
[1617684398902,73.4563,2112.7,2112.6,14.09472883]
[1617684399096,73.4563,2112.7,2112.6,6.84861003]
[1617684399299,73.4563,2112.7,2112.6,5.91461003]
[1617684399489,73.4563,2112.7,2112.6,13.16096004]
[1617684400012,75.4226,2112.7,2112.6,13.16096004]
[1617684401194,73.4563,2112.7,2112.6,13.16096004]
[1617684401493,73.4563,2112.7,2112.6,5.91461003]
[1617684402093,73.4563,2112.7,2112.6,13.16184499]
[1617684402294,73.4563,2112.7,2112.6,5.91461003]
[1617684403196,73.4563,2112.7,2112.6,13.16225868]
[1617684404695,73.4563,2112.7,2112.6,5.91461003]
[1617684405597,73.4563,2112.7,2112.6,8.23351003]
[1617684412305,73.4563,2112.7,2112.6,5.91461003]
[1617684413506,2.90695,2112.8,2112.6,5.91461003]
[1617684414007,2.90695,2112.8,2112.7,0.22473645]
[1617684414406,2.90695,2112.8,2112.7,5.94473645]
[1617684422920,2.90695,2112.8,2112.7,8.23683645]
[1617684426428,75.2417,2112.9,2112.7,8.23683645]
[1617684426828,75.2417,2112.9,2112.8,0.22487503]
[1617684427229,75.2417,2112.9,2112.8,6.05487503]
[1617684427932,78.14865,2112.9,2112.8,6.05487503]
[1617684432838,2.90695,2112.9,2112.8,7.95557503]
[1617684433540,56.2973,2115.0,2112.8,7.95557503]
[1617684433750,2.0,2115.1,2112.9,1.1]
[1617684434147,2.0,2115.1,2114.4,5.39115]
[1617684434540,2.0,2115.1,2114.5,5.84]
[1617684434738,2.9425,2115.1,2114.5,5.84]
[1617684435538,0.9425,2115.1,2114.5,5.84]
[1617684435940,56.2973,2115.2,2114.5,10.85537296]
[1617684436139,2.90695,2114.6,2114.5,10.85537296]
[1617684436641,2.90695,2114.6,2114.5,5.84]
[1617684437041,2.90695,2114.6,2114.5,11.96935399]
[1617684438943,2.90695,2114.6,2114.5,5.84]
[1617684445249,79.10135,2114.6,2114.5,5.84]
[1617684446148,2.90695,2114.6,2114.5,5.84]
[1617684446949,0.9328,2115.7,2114.5,5.84]
[1617684447152,93.0501,2116.6,2114.5,5.84]
[1617684447650,30.0,2116.6,2114.6,4.99085032]
[1617684447893,0.9392,2117.0,2114.6,4.99085032]
[1617684448053,0.9392,2117.0,2114.7,10.81008354]
[1617684448254,0.9392,2117.0,2115.4,2.90695]
[1617684448453,2.9392,2117.0,2115.4,5.48275]
[1617684448652,76.8803,2116.1,2115.5,5.7]
[1617684448853,79.1312,2116.1,2115.5,5.7]
[1617684449353,79.1312,2116.1,2115.0,5.92]
[1617684449654,79.1312,2116.1,2115.6,5.86]
[1617684449855,79.1312,2116.1,2114.8,7.19679921]
[1617684449856,79.1312,2116.1,2115.1,5.86]
[1617684450255,2.90695,2115.8,2115.7,5.78]
[1617684450454,2.90695,2115.8,2115.2,5.73]
[1617684450653,2.90695,2115.8,2115.7,5.63]
[1617684451054,2.90695,2115.8,2115.3,5.81]
[1617684451253,2.90695,2115.8,2115.7,5.75]
[1617684451655,2.90695,2115.8,2115.1,3.86]
[1617684451855,2.90695,2115.8,2115.0,2.90695]
[1617684452056,2.90695,2115.8,2115.7,5.72]
[1617684452258,2.90695,2115.8,2115.1,5.86]
[1617684452662,2.90695,2115.8,2115.7,5.7]
[1617684452858,2.90695,2115.8,2115.1,8.6675]
[1617684453059,2.90695,2115.8,2115.2,5.77]
[1617684453261,2.90695,2115.8,2115.7,5.8]
[1617684453558,2.90695,2115.8,2115.6,2.2642]
[1617684453758,2.90695,2115.8,2115.7,5.74]
[1617684455359,2.90695,2115.8,2115.6,5.78]
[1617684455661,2.90695,2115.8,2115.7,5.9]
[1617684455859,2.90695,2115.8,2115.1,3.8475]
[1617684456059,2.90695,2115.8,2115.4,5.8]
[1617684456259,2.90695,2115.8,2115.2,5.77]
[1617684456460,76.8803,2116.1,2115.5,2.90695]
[1617684456660,76.8803,2116.1,2115.5,8.81695]
[1617684456860,76.8803,2116.1,2115.5,2.90695]
[1617684457171,76.8803,2116.1,2115.6,5.73]
[1617684457375,76.8803,2116.1,2115.6,8.3452]
[1617684458563,2.90695,2115.7,2115.6,8.3452]
[1617684459467,2.90695,2115.7,2115.6,5.73]
[1617684460166,2.90695,2115.7,2115.2,5.92]
[1617684460568,76.8803,2116.1,2115.6,5.92]
[1617684460769,76.8803,2116.1,2115.3,8.77695]
[1617684461067,76.8803,2116.1,2115.7,5.91]
[1617684461468,76.8803,2116.1,2114.7,1.1]
[1617684461666,76.8803,2116.1,2115.8,5.93]
[1617684461667,77.82,2116.1,2115.8,5.93]
[1617684461866,77.82,2116.1,2114.8,5.82]
[1617684462070,77.82,2116.1,2114.5,2.2981]
[1617684462071,77.82,2116.1,2112.6,0.9567]
[1617684462072,3.533,2116.1,2115.6,5.85]
[1617684462474,3.533,2116.1,2114.9,1.1]
[1617684462475,2.90695,2115.7,2115.1,2.90695]
[1617684463068,2.90695,2115.7,2115.2,0.34]
[1617684464574,65.78295,2115.3,2115.2,0.34]
[1617684468578,2.90695,2115.3,2115.2,0.34]
[1617684470080,2.90695,2115.3,2115.2,1.44]
[1617684470978,5.31245,2115.3,2115.2,1.44]
[1617684471980,2.90695,2115.3,2115.2,1.44]
[1617684472585,2.90695,2115.3,2115.2,4.34695]
[1617684488413,0.9329,2116.4,2115.2,4.34695]
[1617684488713,2.0,2116.7,2115.7,5.52045]
[1617684489216,2.0,2116.7,2115.8,5.93]
[1617684490318,2.0,2116.7,2115.9,1.1]
[1617684490716,2.0,2116.7,2116.0,5.73]
[1617684493020,2.90695,2116.1,2116.0,5.73]
[1617684493919,2.90695,2116.1,2115.9,5.83]
[1617684494221,2.90695,2116.1,2116.0,5.75]
[1617684494523,2.90695,2116.1,2115.8,1.1]
[1617684494524,2.90695,2116.1,2115.9,5.75]
[1617684494820,2.90695,2116.1,2116.0,5.71]
[1617684495022,2.90695,2116.1,2115.8,1.1]
[1617684495220,2.90695,2116.1,2115.9,5.93]
[1617684495420,2.90695,2116.1,2116.0,5.82]
[1617684495720,2.90695,2116.1,2115.9,5.82]
[1617684496220,2.90695,2116.1,2116.0,5.73]
[1617684496519,2.90695,2116.1,2115.9,5.8]
[1617684496720,2.90695,2116.1,2116.0,5.74]
[1617684496924,2.90695,2116.1,2116.0,2.90695]
[1617684497221,2.90695,2116.1,2116.0,8.64695]
[1617684497626,2.90695,2116.1,2116.0,2.90695]
[1617684497826,2.90695,2116.1,2116.0,8.62695]
[1617684498225,86.81195,2117.4,2116.0,8.62695]
[1617684498425,86.81195,2117.4,2116.0,9.72695]
[1617684499051,86.81195,2117.4,2116.5,2.90695]
[1617684499225,9.09305,2117.4,2116.5,5.25665]
[1617684499426,9.09305,2117.4,2116.6,5.81]
[1617684500428,57.4422,2117.1,2116.6,5.81]
[1617684501128,2.90695,2116.7,2116.6,5.81]
[1617684502231,2.90695,2116.7,2115.9,5.74]
[1617684502531,2.90695,2116.7,2116.6,5.77]
[1617684502734,2.90695,2116.7,2116.0,1.1]
[1617684502933,78.59825,2116.7,2116.6,5.11]
[1617684503133,75.6913,2116.7,2116.6,5.11]
[1617684503334,75.6913,2116.7,2116.2,1.1]
[1617684503535,75.6913,2116.7,2116.3,4.0]
[1617684503737,75.6913,2116.7,2116.6,5.19]
[1617684504137,75.6913,2116.7,2116.4,5.75]
[1617684504437,75.6913,2116.7,2116.6,5.91]
[1617684504838,75.6913,2116.7,2116.5,5.89]
[1617684505038,75.6913,2116.7,2116.6,5.9]
[1617684505239,9.09305,2117.4,2116.6,5.9]
[1617684505441,9.09305,2117.4,2116.5,5.79]
[1617684505738,9.09305,2117.4,2116.7,5.8]
[1617684505940,9.09305,2117.4,2116.3,2.90695]
[1617684506138,9.09305,2117.4,2116.6,2.1047]
[1617684506539,9.09305,2117.4,2116.7,5.75]
[1617684507347,2.90695,2116.8,2116.7,5.75]
[1617684507542,2.90695,2116.8,2116.4,5.9]
[1617684507850,2.90695,2116.8,2116.7,5.83]
[1617684508040,2.90695,2116.8,2116.4,5.78]
[1617684508340,2.90695,2116.8,2116.7,5.91]
[1617684508741,2.90695,2116.8,2116.4,5.71]
[1617684509142,2.90695,2116.8,2116.7,5.8]
[1617684509343,2.90695,2116.8,2116.4,5.74]
[1617684509742,2.90695,2116.8,2116.7,5.66]
[1617684509943,2.90695,2116.8,2116.5,1.8671]
[1617684510243,2.90695,2116.8,2116.7,5.75]
[1617684510645,2.90695,2116.8,2116.5,1.8671]
[1617684510843,2.90695,2116.8,2116.7,5.71]
[1617684511144,2.90695,2116.8,2116.5,1.8671]
[1617684511343,2.90695,2116.8,2116.3,2.90695]
[1617684511543,2.90695,2116.8,2116.7,5.9]
[1617684511843,2.90695,2116.8,2116.4,5.8]
[1617684512044,2.90695,2116.8,2116.3,2.90695]
[1617684512243,2.90695,2116.8,2116.7,5.81]
[1617684512546,2.90695,2116.8,2116.5,1.9349]
[1617684512743,2.90695,2116.8,2116.7,5.78]
[1617684513045,2.90695,2116.8,2116.6,5.67]
[1617684514844,2.90695,2116.8,2116.4,5.78]
[1617684515245,2.90695,2116.8,2116.7,5.72]
[1617684515448,2.90695,2116.5,2116.4,5.91]
[1617684515747,2.90695,2116.5,2116.3,2.90695]
[1617684516144,2.90695,2116.5,2116.4,5.84]
[1617684525064,2.90695,2116.5,2116.0,5.83]
[1617684525264,61.3498,2116.4,2116.0,5.83]
[1617684525568,61.3498,2116.4,2115.9,3.08]
[1617684525764,61.3498,2116.4,2115.8,1.1]
[1617684525765,5.68055,2116.0,2115.8,1.1]
[1617684526067,5.68055,2116.0,2115.9,5.75]
[1617684527266,64.1256,2116.7,2115.9,5.75]
[1617684529773,64.1256,2116.7,2116.1,2.90695]
[1617684530074,0.9462,2117.0,2116.1,2.90695]
[1617684530272,2.3141,2117.1,2116.2,5.73]
[1617684530472,74.433,2117.3,2116.2,5.73]
[1617684531774,74.433,2117.3,2116.5,2.90695]
[1617684532174,74.433,2117.3,2116.6,5.7]
[1617684533678,2.90695,2116.7,2116.6,5.7]
[1617684534378,9.09305,2117.4,2116.6,5.7]
[1617684534979,9.09305,2117.4,2116.7,4.98303885]
[1617684535179,9.09305,2117.4,2116.7,7.41923885]
[1617684535380,9.09305,2117.4,2116.8,10.74220302]
[1617684535580,9.09305,2117.4,2116.9,1.1]
[1617684535780,9.09305,2117.4,2117.3,5.52505]
[1617684536185,9.09305,2117.4,2117.3,11.32505]
[1617684537987,9.08478993,2117.4,2117.3,11.32505]
[1617684538588,9.08478993,2117.4,2117.3,16.29674615]
[1617684538789,9.08478993,2117.4,2117.3,17.39674615]
[1617684539988,9.08478993,2117.4,2117.3,12.42505]
[1617684540489,9.08478993,2117.4,2117.3,17.39605529]
[1617684541188,9.08478993,2117.4,2117.3,12.42505]
[1617684541687,9.08478993,2117.4,2117.3,12.64550987]
[1617684542588,9.08478993,2117.4,2117.3,18.71978313]
[1617684543089,15.0,2118.7,2117.3,18.71978313]
[1617684543789,15.0,2118.7,2118.4,2.90695]
[1617684544192,15.0,2118.7,2118.5,5.92]
[1617684545893,2.90695,2118.6,2118.5,5.92]
[1617684547899,4.95065,2118.6,2118.5,5.92]
[1617684548499,4.95065,2118.6,2118.0,5.91]
[1617684548701,4.95065,2118.6,2118.1,1.1]
[1617684548900,4.95065,2118.6,2118.5,5.84]
[1617684549303,4.95065,2118.6,2118.2,5.6]
[1617684549500,4.95065,2118.6,2118.5,5.85]
[1617684549900,4.95065,2118.6,2118.3,2.90695]
[1617684550100,4.95065,2118.6,2118.5,5.8]
[1617684550500,4.95065,2118.6,2118.4,5.69]
[1617684550700,4.95065,2118.6,2118.5,5.91]
[1617684551000,4.95065,2118.6,2118.4,5.83]
[1617684551401,4.95065,2118.6,2118.5,5.86]
[1617684551603,4.95065,2118.6,2118.3,2.90695]
[1617684551804,4.95065,2118.6,2118.4,5.73]
[1617684552003,4.95065,2118.6,2118.5,5.67]
[1617684552202,4.95065,2118.6,2118.3,2.90695]
[1617684552402,4.95065,2118.6,2118.4,5.94]
[1617684552603,4.95065,2118.6,2118.5,5.9]
[1617684552805,4.95065,2118.6,2118.4,5.9]
[1617684553208,4.95065,2118.6,2118.5,5.71]
[1617684553405,4.95065,2118.6,2118.4,5.92]
[1617684554516,2.90695,2118.6,2118.4,5.92]
[1617684557914,67.8511,2118.5,2117.7,5.71]
[1617684558214,2.90695,2118.6,2118.5,5.73]
[1617684558615,58.6379,2118.4,2117.8,5.87]
[1617684558914,58.6379,2118.4,2117.4,2.90695]
[1617684559114,58.6379,2118.4,2117.9,5.85]
[1617684559520,58.6379,2118.4,2117.4,2.90695]
[1617684559716,58.6379,2118.4,2118.0,5.83]
[1617684559916,2.90695,2118.1,2118.0,5.83]
[1617684560116,2.90695,2118.1,2117.8,2.90695]
[1617684560316,2.90695,2118.1,2118.0,5.17]
[1617684560716,2.90695,2118.1,2117.8,2.90695]
[1617684560916,2.90695,2118.1,2118.0,5.82]
[1617684561317,2.90695,2118.1,2117.9,5.73]
[1617684561517,2.90695,2118.1,2118.0,5.69]
[1617684561917,2.90695,2118.1,2117.9,5.68]
[1617684562120,2.90695,2118.1,2117.2,5.77]
[1617684562319,2.90695,2118.1,2118.0,5.8]
[1617684562523,2.90695,2118.1,2117.3,1.1]
[1617684562725,2.90695,2118.1,2117.4,3.77]
[1617684562925,2.90695,2118.1,2118.0,5.84]
[1617684563127,2.90695,2118.1,2117.3,1.1]
[1617684563325,2.90695,2118.1,2117.5,5.84]
[1617684563620,2.90695,2118.1,2118.0,5.66]
[1617684563820,2.90695,2118.1,2117.5,1.1]
[1617684564020,2.90695,2118.1,2118.0,5.71]
[1617684564220,2.90695,2118.1,2117.9,2.90695]
[1617684564726,2.90695,2118.1,2118.0,5.78]
[1617684570125,2.90695,2118.1,2118.0,5.76964397]
[1617684574429,2.90695,2118.1,2118.0,6.86964397]
[1617684578037,10.0,2118.3,2118.0,6.86964397]
[1617684578236,10.0,2118.3,2118.2,4.63465]
[1617684578637,10.0,2118.3,2118.2,10.58465]
[1617684582541,10.0,2118.3,2118.2,11.68465]
[1617684593251,10.0,2118.3,2118.2,11.90317945]
[1617684602560,10.0,2118.3,2118.2,10.17547945]
[1617684603661,10.0,2118.3,2118.2,9.95695]